bitfinex/quotes_SOLUSD_20250507
["timestamp","ask_amount","ask_price","bid_price","bid_amount"]
[1746589579712,152.09168315,146.37,146.33,14.39168315]
[1746589580297,137.7,146.37,146.35,14.39168315]
[1746589581204,137.7,146.37,146.36,21.22415103]
[1746589581811,152.09168315,146.42,146.36,21.22415103]
[1746589582012,152.09168315,146.42,146.37,14.39168315]
[1746589582401,14.39168315,146.41,146.37,14.39168315]
[1746589583513,14.39168315,146.41,146.38,6.83153436]
[1746589584213,137.7,146.42,146.38,6.83153436]
[1746589584393,14.39168315,146.41,146.38,6.83153436]
[1746589584718,14.39168315,146.41,146.37,21.22357561]
[1746589585914,137.7,146.42,146.37,21.22357561]
[1746589586088,137.7,146.42,146.39,14.39168315]
[1746589586513,137.7,146.42,146.39,21.2223931]
[1746589588318,137.7,146.42,146.37,23.91200382]
[1746589588493,137.7,146.42,146.37,21.22368424]
[1746589588494,14.39168315,146.41,146.37,21.22368424]
[1746589589303,152.09168315,146.42,146.37,21.22368424]
[1746589589814,158.92146374,146.42,146.37,21.22368424]
[1746589591129,137.7,146.41,146.37,21.22368424]
[1746589592919,137.7,146.41,146.38,14.39168315]
[1746589597907,137.7,146.41,146.37,6.83200109]
[1746589598108,144.53017163,146.41,146.37,14.39168315]
[1746589598307,14.39168315,146.4,146.36,23.07241733]
[1746589598523,137.7,146.39,146.36,16.24]
[1746589598733,137.7,146.39,146.36,37.46410178]
[1746589601533,137.7,146.39,146.36,30.63168315]
[1746589602918,137.7,146.39,146.36,14.39168315]
[1746589603117,137.7,146.39,146.37,14.39168315]
[1746589603335,137.7,146.39,146.38,14.39168315]
[1746589604428,142.78454187,146.39,146.38,14.39168315]
[1746589605142,137.7,146.39,146.38,21.22321751]
[1746589606218,137.7,146.43,146.38,21.22321751]
[1746589606419,137.7,146.43,146.4,14.39168315]
[1746589607637,137.7,146.43,146.39,21.22250204]
[1746589609157,137.7,146.43,146.4,14.39168315]
[1746589609329,137.7,146.43,146.41,14.39168315]
[1746589609730,5.0874026,146.42,146.41,14.39168315]
[1746589610667,5.0874026,146.42,146.39,40.14848812]
[1746589610668,18.79181043,146.39,146.27,23.00116812]
[1746589610829,26.0,146.36,146.28,6.83591498]
[1746589611027,40.39168315,146.36,146.3,25.08751721]
[1746589611227,6.83293474,146.35,146.3,25.08751721]
[1746589611529,5.0874026,146.34,146.31,14.39168315]
[1746589611846,5.0874026,146.34,146.3,10.69583406]
[1746589612055,5.0874026,146.34,146.3,17.53104636]
[1746589612254,5.0874026,146.34,146.32,14.39168315]
[1746589612451,5.0874026,146.34,146.3,17.53104636]
[1746589612632,5.0874026,146.34,146.32,14.39168315]
[1746589612832,6.83271108,146.36,146.32,14.39168315]
[1746589613141,47.22439423,146.36,146.31,14.39168315]
[1746589613647,47.22439423,146.36,146.29,6.83573723]
[1746589613959,14.39168315,146.35,146.3,14.39168315]
[1746589614126,19.47100735,146.35,146.3,14.39168315]
[1746589615159,5.0793242,146.34,146.3,14.39168315]
[1746589615852,5.0793242,146.34,146.31,14.39168315]
[1746589616038,5.0793242,146.33,146.32,14.39168315]
[1746589616243,5.0793242,146.33,146.31,14.39168315]
[1746589616861,5.0793242,146.33,146.32,14.39168315]
[1746589617032,14.39168315,146.39,146.32,14.39168315]
[1746589617232,137.7,146.38,146.34,14.39168315]
[1746589618031,144.53171116,146.38,146.34,14.39168315]
[1746589618236,11.90807952,146.37,146.34,14.39168315]
[1746589618762,11.90807952,146.37,146.32,21.22599295]
[1746589618975,14.39168315,146.34,146.3,56.89168315]
[1746589619854,14.39168315,146.34,146.3,63.72677085]
[1746589620048,6.8320864,146.37,146.3,63.72677085]
[1746589620252,21.22466345,146.35,146.3,63.72677085]
[1746589620860,14.39168315,146.35,146.3,63.72677085]
[1746589621752,5.07244486,146.34,146.3,63.72677085]
[1746589622857,26.29759287,146.34,146.3,42.5]
[1746589623163,14.39168315,146.33,146.29,21.22733385]
[1746589624865,21.22566585,146.33,146.29,14.39168315]
[1746589625462,21.22566585,146.33,146.28,63.46782043]
[1746589626057,21.22566585,146.33,146.29,14.39168315]
[1746589626365,14.39168315,146.33,146.29,21.22740577]
[1746589626766,21.22527547,146.34,146.29,21.22740577]
[1746589626969,6.83359232,146.34,146.31,14.39168315]
[1746589631861,6.83359232,146.34,146.3,14.39168315]
[1746589632573,21.22527547,146.34,146.3,14.39168315]
[1746589632972,6.83359232,146.34,146.3,14.39168315]
[1746589633271,21.22527547,146.34,146.3,14.39168315]
[1746589633968,21.22527547,146.34,146.29,6.83567567]
[1746589634168,21.22527547,146.34,146.3,14.39168315]
[1746589636870,6.83359232,146.34,146.3,14.39168315]
[1746589637068,6.83303126,146.35,146.32,14.39168315]
[1746589639571,5.06895639,146.34,146.32,14.39168315]
[1746589640676,6.83303126,146.35,146.32,14.39168315]
[1746589642059,21.22471441,146.35,146.31,21.22645849]
[1746589642263,14.39168315,146.32,146.28,42.24]
[1746589643272,14.39168315,146.32,146.28,56.63168315]
[1746589643765,21.22611724,146.32,146.28,56.63168315]
[1746589644670,21.22611724,146.32,146.28,63.46775115]
[1746589645076,6.83401016,146.33,146.28,63.46775115]
[1746589645282,21.22569331,146.33,146.29,14.39168315]
[1746589645783,5.07075193,146.32,146.29,14.39168315]
[1746589646181,5.07075193,146.32,146.29,21.22738603]
[1746589646987,14.39168315,146.33,146.29,21.22738603]
[1746589648292,5.07067516,146.32,146.3,14.39168315]
[1746589648490,5.07067516,146.32,146.31,14.39168315]
[1746589649668,152.09168315,146.34,146.3,14.39168315]
[1746589650691,152.09168315,146.34,146.31,6.83480281]
[1746589651882,137.7,146.34,146.33,14.39168315]
[1746589652074,137.7,146.38,146.33,14.39168315]
[1746589652273,137.7,146.38,146.35,14.39168315]
[1746589653468,137.7,146.38,146.34,14.39168315]
[1746589654090,137.7,146.38,146.34,21.22474572]
[1746589657791,152.09168315,146.38,146.34,21.22474572]
[1746589658191,1.5118,146.3,146.22,10.69583406]
[1746589658381,137.7,146.29,146.22,10.69583406]
[1746589658568,14.39168315,146.25,146.22,10.69583406]
[1746589659100,14.39168315,146.24,146.22,10.69583406]
[1746589659298,14.39168315,146.25,146.22,10.69583406]
[1746589659600,5.08069335,146.23,146.22,31.92652692]
[1746589659801,5.08069335,146.23,146.22,40.60436658]
[1746589660585,160.76952281,146.27,146.22,40.60436658]
[1746589661201,137.7,146.27,146.23,23.06952281]
[1746589662796,137.7,146.27,146.23,29.90797404]
[1746589663110,29.90583944,146.28,146.23,29.90797404]
[1746589664399,29.90583944,146.28,146.24,23.06952281]
[1746589665394,29.90583944,146.28,146.23,23.06952281]
[1746589665699,29.90583944,146.28,146.22,6.83900971]
[1746589665700,23.06952281,146.27,146.22,23.06952281]
[1746589666698,66.90132281,146.3,146.21,6.83943277]
[1746589666699,6.83713934,146.26,146.25,23.06952281]
[1746589666907,0.14216157,146.29,146.25,23.06952281]
[1746589667208,23.21168438,146.29,146.25,23.06952281]
[1746589667904,30.04742161,146.29,146.25,23.06952281]
[1746589668097,29.90526004,146.29,146.24,23.06952281]
[1746589669009,46.99460312,146.29,146.24,23.06952281]
[1746589669208,160.76952281,146.28,146.24,23.06952281]
[1746589670296,6.8366719,146.27,146.23,23.06952281]
[1746589671008,55.90619471,146.27,146.2,6.83988445]
[1746589671216,55.90619471,146.27,146.22,23.06952281]
[1746589672210,46.13904562,146.23,146.17,1.549]
[1746589672392,23.06952281,146.18,146.13,31.23382281]
[1746589672790,23.06952281,146.19,146.15,23.06952281]
[1746589672990,23.06952281,146.21,146.16,23.06952281]
[1746589673501,23.06952281,146.18,146.14,26.0]
[1746589673689,23.06952281,146.18,146.14,6.84275352]
[1746589674081,23.06952281,146.18,146.14,29.91227633]
[1746589674291,23.06952281,146.19,146.14,29.91227633]
[1746589675410,29.90998408,146.19,146.14,29.91227633]
[1746589675788,23.06952281,146.17,146.13,34.40101799]
[1746589675988,23.06952281,146.17,146.13,57.4705408]
[1746589676915,23.06952281,146.18,146.13,57.4705408]
[1746589677093,6.84046127,146.19,146.16,23.06952281]
[1746589677417,29.90900027,146.21,146.17,23.06952281]
[1746589678315,1.5284,146.23,146.19,23.06952281]
[1746589678512,23.06952281,146.23,146.19,23.06952281]
[1746589678899,23.06952281,146.22,146.17,29.91043994]
[1746589679715,23.06952281,146.21,146.16,49.1617709]
[1746589679925,23.06952281,146.21,146.17,23.06952281]
[1746589681236,29.9090631,146.21,146.17,23.06952281]
[1746589682433,23.06952281,146.22,146.17,23.06952281]
[1746589685027,6.83947746,146.21,146.17,23.06952281]
[1746589687425,29.90900027,146.21,146.16,23.06952281]
[1746589687730,21.27013905,146.21,146.16,14.43066159]
[1746589687929,14.43066159,146.2,146.16,14.43066159]
[1746589688629,14.43066159,146.19,146.15,14.43066159]
[1746589688812,21.27151325,146.19,146.15,14.43066159]
[1746589689206,14.43066159,146.17,146.12,16.3]
[1746589689429,14.43066159,146.17,146.13,14.43066159]
[1746589689617,152.13066159,146.18,146.13,14.43066159]
[1746589689818,152.13066159,146.18,146.14,14.43066159]
[1746589689819,137.7,146.18,146.14,14.43066159]
[1746589690218,137.7,146.18,146.15,14.43066159]
[1746589690609,137.7,146.18,146.14,14.43066159]
[1746589690832,137.7,146.18,146.15,14.43066159]
[1746589691735,137.7,146.18,146.15,23.09131647]
[1746589692224,144.54089317,146.18,146.12,23.1436264]
[1746589692529,144.54089317,146.18,146.14,23.09131647]
[1746589694120,23.09131647,146.16,146.13,6.84312747]
[1746589695434,23.09131647,146.16,146.12,16.3]
[1746589695634,23.09131647,146.15,146.12,16.3]
[1746589695932,23.09131647,146.16,146.12,16.3]
[1746589696634,23.09131647,146.13,146.06,17.1153901]
[1746589696837,23.09131647,146.13,146.09,23.09131647]
[1746589697332,23.09131647,146.13,146.09,29.93615072]
[1746589699212,137.7,146.16,146.12,23.09131647]
[1746589699727,137.7,146.16,146.14,23.09131647]
[1746589700825,137.7,146.16,146.13,23.09131647]
[1746589701237,137.7,146.16,146.14,6.84275352]
[1746589703756,160.79131647,146.16,146.11,23.09131647]
[1746589704041,160.79131647,146.16,146.12,23.09131647]
[1746589704339,137.7,146.16,146.12,23.09131647]
[1746589705317,160.79131647,146.16,146.12,23.09131647]
[1746589705518,23.09131647,146.15,146.11,6.84415851]
[1746589705732,23.09131647,146.15,146.11,29.93547498]
[1746589705940,26.0,146.17,146.1,18.64964886]
[1746589706129,23.09131647,146.18,146.13,23.09131647]
[1746589706330,23.09131647,146.18,146.1,18.64964886]
[1746589706628,23.09131647,146.18,146.13,23.09131647]
[1746589706830,7.8714,146.2,146.15,23.09131647]
[1746589707036,15.06657439,146.24,146.17,23.09131647]
[1746589707239,23.09131647,146.21,146.17,23.09131647]
[1746589707563,23.09131647,146.2,146.16,23.09131647]
[1746589708050,23.09131647,146.2,146.15,23.09131647]
[1746589709045,23.09131647,146.2,146.16,23.09131647]
[1746589709429,23.09131647,146.2,146.15,23.09131647]
[1746589710049,145.9285,146.24,146.17,23.09131647]
[1746589710224,23.09131647,146.23,146.19,23.09131647]
[1746589711344,23.09131647,146.23,146.19,29.9314785]
[1746589712831,23.09131647,146.22,146.19,6.84016203]
[1746589713950,172.18639122,146.24,146.19,6.84016203]
[1746589714431,23.09131647,146.22,146.19,6.84016203]
[1746589714734,23.09131647,146.22,146.18,29.93211034]
[1746589715749,23.09131647,146.22,146.18,6.84079387]
[1746589715954,23.09131647,146.21,146.18,6.84079387]
[1746589716255,23.09131647,146.21,146.16,6.84181718]
[1746589716553,23.09131647,146.2,146.16,29.93313365]
[1746589717447,23.09131647,146.21,146.17,23.09131647]
[1746589718051,6.83874955,146.23,146.19,23.09131647]
[1746589718250,195.2778859,146.24,146.2,23.09131647]
[1746589718450,195.2778859,146.24,146.19,23.09131647]
[1746589720057,195.2778859,146.24,146.19,29.9317107]
[1746589720433,195.2778859,146.24,146.19,6.84039423]
[1746589720752,195.2778859,146.24,146.19,29.9317107]
[1746589721859,195.2778859,146.24,146.19,23.09131647]
[1746589722761,23.09131647,146.23,146.19,29.93171423]
[1746589724357,23.09131647,146.23,146.17,6.84134911]
[1746589724560,23.09131647,146.23,146.19,23.09131647]
[1746589724734,23.09131647,146.23,146.17,6.84134911]
[1746589724935,23.09131647,146.23,146.19,23.09131647]
[1746589726354,23.09131647,146.23,146.19,29.93156414]
[1746589727863,14.42510441,146.23,146.19,14.42510441]
[1746589728064,14.42510441,146.23,146.17,6.84134911]
[1746589728250,14.42510441,146.23,146.19,14.42510441]
[1746589729453,163.7,146.24,146.21,14.42510441]
[1746589729454,26.0,146.24,146.21,14.42510441]
[1746589730264,14.42510441,146.25,146.21,21.26429]
[1746589730447,152.12510441,146.27,146.23,14.42510441]
[1746589731062,152.12510441,146.27,146.21,6.83918559]
[1746589731248,152.12510441,146.27,146.22,14.42510441]
[1746589731869,14.42510441,146.26,146.22,14.42510441]
[1746589733962,14.42510441,146.26,146.23,6.83854202]
[1746589736869,137.7,146.27,146.23,21.26364643]
[1746589737078,152.12510441,146.27,146.23,21.26364643]
[1746589737751,152.12510441,146.27,146.23,6.83854202]
[1746589737953,152.12510441,146.27,146.23,21.26364643]
[1746589738372,14.42510441,146.24,146.17,17.8472]
[1746589738679,14.42510441,146.23,146.19,14.42510441]
[1746589739674,14.42510441,146.23,146.2,6.83994528]
[1746589741386,14.42510441,146.23,146.18,6.8408811]
[1746589741683,14.42510441,146.23,146.18,21.26598551]
[1746589742768,14.42510441,146.23,146.19,21.26540503]
[1746589743660,14.42510441,146.23,146.19,6.84030062]
[1746589744475,14.42510441,146.23,146.18,6.8408811]
[1746589744868,14.42510441,146.23,146.18,21.26598551]
[1746589745976,14.42510441,146.22,146.14,17.10574323]
[1746589746288,14.42510441,146.21,146.16,14.42510441]
[1746589746661,14.42510441,146.21,146.17,14.42510441]
[1746589747574,21.26459039,146.21,146.17,14.42510441]
[1746589751072,21.26459039,146.21,146.16,21.26663062]
[1746589752370,5.0702592,146.2,146.16,21.26663062]
[1746589752856,5.0702592,146.2,146.17,14.42510441]
[1746589753280,5.0702592,146.19,146.17,14.42510441]
[1746589753581,5.0702592,146.19,146.13,58.46]
[1746589753762,5.0702592,146.19,146.15,14.42510441]
[1746589754081,5.0702592,146.18,146.15,14.42510441]
[1746589754890,5.0702592,146.17,146.15,14.42510441]
[1746589755885,5.0702592,146.16,146.15,14.42510441]
[1746589757982,19.49536361,146.16,146.09,6.84509548]
[1746589758178,14.42510441,146.11,146.09,6.84509548]
[1746589758378,14.42510441,146.12,146.09,6.84509548]
[1746589759065,1.5215,146.14,146.08,6.84546944]
[1746589759270,14.42510441,146.11,146.07,47.27098857]
[1746589759581,14.42510441,146.11,146.07,21.27098857]
[1746589759884,14.42510441,146.12,146.07,47.27098857]
[1746589760056,14.42510441,146.11,146.07,47.27098857]
[1746589761584,14.42510441,146.12,146.08,14.42510441]
[1746589762281,14.42510441,146.11,146.07,32.84588416]
[1746589762482,14.42510441,146.11,146.07,47.27098857]
[1746589762785,14.42510441,146.11,146.07,21.27098857]
[1746589763483,6.84278572,146.14,146.09,14.42510441]
[1746589763864,14.42510441,146.13,146.09,14.42510441]
[1746589765183,144.2226,146.15,146.1,14.42510441]
[1746589765490,144.2226,146.15,146.11,14.42510441]
[1746589765491,152.12510441,146.15,146.11,14.42510441]
[1746589765789,5.04573377,146.14,146.11,14.42510441]
[1746589766689,152.12510441,146.15,146.11,14.42510441]
[1746589768289,14.42510441,146.14,146.11,6.84375157]
[1746589769488,152.12510441,146.15,146.11,21.26885598]
[1746589770783,137.7,146.15,146.11,21.26885598]
[1746589772092,137.7,146.15,146.14,14.42510441]
[1746589772391,6.2259,146.19,146.14,14.42510441]
[1746589772567,5.04281242,146.18,146.16,14.42510441]
[1746589773495,6.2259,146.19,146.16,14.42510441]
[1746589773806,163.7,146.2,146.16,21.26688866]
[1746589773992,137.7,146.2,146.17,14.42510441]
[1746589774585,5.04346429,146.19,146.17,14.42510441]
[1746589776084,5.04346429,146.18,146.17,14.42510441]
[1746589777399,5.04346429,146.19,146.17,14.42510441]
[1746589777894,5.04346429,146.19,146.16,6.84178425]
[1746589778098,5.04346429,146.19,146.13,6.84322178]
[1746589778304,5.04346429,146.19,146.15,14.42510441]
[1746589778471,14.42510441,146.18,146.14,14.42510441]
[1746589778677,14.42510441,146.17,146.13,21.26832619]
[1746589778978,14.42510441,146.18,146.14,14.42510441]
[1746589779399,21.26601795,146.18,146.14,14.42510441]
[1746589779696,14.42510441,146.18,146.14,21.2675464]
[1746589781011,137.7,146.2,146.17,14.42510441]
[1746589781312,137.7,146.2,146.18,14.42510441]
[1746589781506,5.05028967,146.19,146.18,14.42510441]
[1746589785011,5.05028967,146.19,146.17,14.42510441]
[1746589785201,5.05028967,146.19,146.13,23.95127625]
[1746589785400,5.05028967,146.19,146.17,14.42510441]
[1746589786009,5.05028967,146.18,146.17,14.42510441]
[1746589787001,5.05028967,146.18,146.17,21.26645352]
[1746589787206,5.05028967,146.18,146.17,14.42510441]
[1746589788818,5.05028967,146.18,146.16,21.26672602]
[1746589789219,5.05028967,146.18,146.16,21.26682877]
[1746589789810,137.7,146.2,146.16,21.26682877]
[1746589790019,26.0,146.16,146.08,38.38457866]
[1746589790309,14.42510441,146.13,146.08,38.38457866]
[1746589790710,14.42510441,146.13,146.09,14.42510441]
[1746589790904,14.42510441,146.14,146.09,14.42510441]
[1746589791324,5.06384039,146.13,146.09,14.42510441]
[1746589792517,14.42510441,146.14,146.1,6.84462696]
[1746589792821,14.42510441,146.14,146.1,21.26973137]
[1746589794825,21.26751697,146.15,146.1,21.26973137]
[1746589795823,5.06621211,146.14,146.1,21.26973137]
[1746589796831,21.26751697,146.15,146.1,21.26973137]
[1746589797515,21.26742426,146.15,146.11,14.42510441]
[1746589797838,14.42510441,146.13,146.08,6.84556407]
[1746589798134,14.42510441,146.14,146.1,14.42510441]
[1746589798627,8.41731985,146.15,146.11,14.42510441]
[1746589798837,6.84231985,146.15,146.11,14.42510441]
[1746589799132,21.26742426,146.15,146.11,14.42510441]
[1746589799321,5.0696876,146.14,146.11,14.42510441]
[1746589800240,19.49479201,146.14,146.08,6.84548952]
[1746589800408,5.0696876,146.13,146.09,14.42510441]
[1746589800609,5.0696876,146.13,146.1,14.42510441]
[1746589801031,5.0696876,146.13,146.11,14.42510441]
[1746589801346,5.0696876,146.13,146.12,14.42510441]
[1746589801509,5.0696876,146.13,146.1,6.8444288]
[1746589801703,144.54231985,146.15,146.12,14.42510441]
[1746589802427,158.96742426,146.15,146.08,6.84556407]
[1746589802730,137.7,146.15,146.12,14.42510441]
[1746589802927,5.0703221,146.14,146.12,14.42510441]
[1746589803134,5.0703221,146.14,146.13,14.42510441]
[1746589804632,5.0703221,146.14,146.11,6.84383601]
[1746589804823,5.0703221,146.14,146.13,14.42510441]
[1746589805531,5.0703221,146.14,146.13,21.26832619]
[1746589805840,5.0703221,146.14,146.13,6.84322178]
[1746589806038,5.0703221,146.14,146.13,21.26832619]
[1746589807122,1.575,146.17,146.13,21.26832619]
[1746589808858,1.575,146.17,146.1,6.84462696]
[1746589809014,1.575,146.17,146.13,14.42510441]
[1746589812638,158.26990441,146.18,146.14,14.42510441]
[1746589812842,1.6571,146.2,146.17,14.42510441]
[1746589813011,16.08220441,146.2,146.16,14.42510441]
[1746589813212,16.08220441,146.2,146.15,14.42510441]
[1746589813525,14.42510441,146.19,146.15,14.42510441]
[1746589813928,22.92233401,146.2,146.16,14.42510441]
[1746589814126,1.6571,146.2,146.17,14.42510441]
[1746589814330,47.26461681,146.21,146.17,14.42510441]
[1746589816457,14.42510441,146.2,146.17,14.42510441]
[1746589816837,14.42510441,146.2,146.16,21.26663898]
[1746589817244,32.8395124,146.21,146.16,21.26663898]
[1746589817421,14.42510441,146.2,146.16,21.26663898]
[1746589817858,32.8395124,146.21,146.16,21.26663898]
[1746589818143,14.42510441,146.2,146.16,21.26663898]
[1746589823354,14.42510441,146.19,146.14,6.84275352]
[1746589823655,14.42510441,146.19,146.15,14.42510441]
[1746589824651,14.42510441,146.19,146.14,6.84275352]
[1746589824956,14.42510441,146.19,146.15,21.26718951]
[1746589826233,14.42510441,146.19,146.14,21.26785793]
[1746589826624,14.42510441,146.19,146.14,6.84275352]
[1746589826923,14.42510441,146.19,146.14,21.26785793]
[1746589830250,14.42510441,146.19,146.15,21.26705759]
[1746589831379,14.42510441,146.2,146.16,14.42510441]
[1746589831850,26.0,146.21,146.17,14.42510441]
[1746589832447,40.42510441,146.21,146.17,21.26605586]
[1746589841570,137.7,146.22,146.18,14.42510441]
[1746589841772,152.12510441,146.22,146.18,14.42510441]
[1746589843179,152.12510441,146.22,146.18,21.26568912]
[1746589843555,14.42510441,146.21,146.16,6.84181718]
[1746589843748,14.42510441,146.21,146.17,14.42510441]
[1746589847781,152.12510441,146.22,146.18,21.26598551]
[1746589848463,40.42510441,146.23,146.18,21.26598551]
[1746589850287,40.42510441,146.23,146.19,14.42510441]
[1746589852181,40.42510441,146.23,146.19,21.26511499]
[1746589854391,26.0,146.23,146.19,21.26511499]
[1746589854687,40.42510441,146.23,146.19,21.26511499]
[1746589855686,35.23280913,146.23,146.19,9.23280913]
[1746589857093,9.23280913,146.23,146.19,16.07276517]
[1746589859906,163.7,146.25,146.21,9.23280913]
[1746589860196,172.93280913,146.25,146.21,9.23280913]
[1746589860693,137.7,146.25,146.21,9.23280913]
[1746589860901,137.7,146.25,146.22,9.23280913]
[1746589861094,137.7,146.25,146.23,16.07135115]
[1746589862000,137.7,146.25,146.23,6.83854202]
[1746589863690,137.7,146.25,146.23,16.07135115]
[1746589863892,5.06784959,146.24,146.23,6.83854202]
[1746589864288,19.48683871,146.24,146.19,14.41898912]
[1746589864607,19.48683871,146.23,146.19,14.41898912]
[1746589865402,5.06784959,146.22,146.2,6.83994528]
[1746589866410,5.06784959,146.21,146.2,6.83994528]
[1746589871917,5.06784959,146.21,146.2,14.41898912]
[1746589873927,5.06784959,146.21,146.2,6.83994528]
[1746589876814,5.06784959,146.21,146.2,21.2589344]
[1746589877118,4.9994361,146.21,146.2,21.2589344]
[1746589881814,26.0,146.26,146.2,38.3587976]
[1746589882012,137.7,146.27,146.23,14.41898912]
[1746589882216,137.7,146.27,146.24,14.41898912]
[1746589882403,15.96948912,146.28,146.24,14.41898912]
[1746589883216,1.5505,146.28,146.24,14.41898912]
[1746589883418,170.1389,146.3,146.25,14.41898912]
[1746589883610,14.41898912,146.29,146.25,14.41898912]
[1746589883809,14.41898912,146.29,146.24,14.41898912]
[1746589884121,14.41898912,146.29,146.24,21.25673192]
[1746589884305,21.25473832,146.29,146.24,21.25673192]
[1746589885430,14.41898912,146.29,146.24,21.25673192]
[1746589886031,21.25476278,146.29,146.24,21.25673192]
[1746589886599,14.41898912,146.28,146.24,21.25673192]
[1746589887833,14.41898912,146.28,146.23,6.83854202]
[1746589888000,14.41898912,146.28,146.24,14.41898912]
[1746589889723,9.22592104,146.28,146.24,16.06373771]
[1746589893836,9.22592104,146.29,146.24,16.06373771]
[1746589894738,9.22592104,146.28,146.24,16.06373771]
[1746589895627,9.22592104,146.28,146.24,6.83781667]
[1746589895936,9.22592104,146.28,146.24,16.06373771]
[1746589897236,9.22592104,146.26,146.23,6.83844864]
[1746589897914,9.22592104,146.26,146.22,16.06493075]
[1746589901242,5.06559407,146.25,146.22,6.83900971]
[1746589901740,5.06559407,146.25,146.22,16.06493075]
[1746589902032,5.06559407,146.25,146.24,9.22592104]
[1746589902241,5.06559407,146.25,146.24,16.06399543]
[1746589902412,5.06559407,146.25,146.24,34.71364429]
[1746589902725,9.22592104,146.32,146.24,33.15918142]
[1746589902934,9.22592104,146.32,146.27,9.22592104]
[1746589903944,9.22592104,146.31,146.27,9.22592104]
[1746589904236,9.22592104,146.31,146.27,16.06235096]
[1746589905830,14.4101119,146.31,146.27,21.24654182]
[1746589906319,14.4101119,146.32,146.27,21.24654182]
[1746589906515,14.4101119,146.32,146.28,14.4101119]
[1746589906726,14.4101119,146.33,146.28,14.4101119]
[1746589908042,14.4101119,146.32,146.28,14.4101119]
[1746589908242,14.4101119,146.32,146.27,6.83642992]
[1746589908243,14.4101119,146.32,146.27,21.24654182]
[1746589909235,137.7,146.34,146.29,14.4101119]
[1746589909426,14.4101119,146.33,146.28,18.64964886]
[1746589909738,14.4101119,146.32,146.27,6.83642992]
[1746589909947,14.4101119,146.31,146.27,21.24654182]
[1746589910946,144.53353991,146.34,146.27,21.24654182]
[1746589911148,14.4101119,146.31,146.27,21.24654182]
[1746589913842,6.83426758,146.33,146.28,14.4101119]
[1746589914057,14.4101119,146.32,146.28,14.4101119]
[1746589914230,14.4101119,146.31,146.27,21.24654182]
[1746589918650,14.4101119,146.32,146.28,21.24594719]
[1746589919231,14.4101119,146.33,146.29,14.4101119]
[1746589919950,137.7,146.34,146.29,14.4101119]
[1746589920141,152.1101119,146.34,146.3,14.4101119]
[1746589921053,14.4101119,146.33,146.3,6.83526999]
[1746589921250,137.7,146.34,146.3,21.24538189]
[1746589921473,152.1101119,146.34,146.3,21.24538189]
[1746589922241,137.7,146.34,146.3,21.24538189]
[1746589922442,152.1101119,146.34,146.3,21.24538189]
[1746589924048,14.4101119,146.33,146.3,6.83526999]
[1746589925459,14.4101119,146.34,146.3,21.24538189]
[1746589925759,9.21854381,146.34,146.3,16.0538138]
[1746589926056,137.7,146.42,146.33,9.21854381]
[1746589926360,9.21854381,146.36,146.31,41.57854381]
[1746589927459,9.21854381,146.36,146.32,6.8343357]
[1746589927843,14.40012669,146.36,146.32,21.23446239]
[1746589928461,6.9729046,146.4,146.33,14.40012669]
[1746589928768,14.40012669,146.37,146.33,14.40012669]
[1746589929966,14.40012669,146.37,146.34,6.83340166]
[1746589930351,137.7,146.39,146.34,6.83340166]
[1746589930549,14.40012669,146.37,146.34,6.83340166]
[1746589935078,137.7,146.39,146.35,14.40012669]
[1746589935369,14.40012669,146.4,146.35,14.40012669]
[1746589935557,14.40012669,146.4,146.36,14.40012669]
[1746589935766,26.0,146.41,146.36,14.40012669]
[1746589935951,14.40012669,146.4,146.36,14.40012669]
[1746589936278,137.7,146.42,146.37,14.40012669]
[1746589936568,137.7,146.42,146.39,6.83106769]
[1746589936870,152.10012669,146.42,146.39,6.83106769]
[1746589937070,137.7,146.42,146.39,6.83106769]
[1746589937577,152.10012669,146.42,146.38,21.23153562]
[1746589939170,33.9226,146.43,146.38,21.23153562]
[1746589939171,48.32272669,146.43,146.38,21.23153562]
[1746589939373,33.9226,146.43,146.38,21.23153562]
[1746589939547,14.40012669,146.42,146.38,21.23153562]
[1746589939949,26.0,146.43,146.39,14.40012669]
[1746589940369,40.40012669,146.43,146.39,14.40012669]
[1746589940576,14.40012669,146.42,146.38,21.23153562]
[1746589941776,47.22947463,146.43,146.38,21.23153562]
[1746589943477,40.40012669,146.43,146.38,21.23153562]
[1746589945070,40.40012669,146.43,146.39,14.40012669]
[1746589945286,26.0,146.43,146.39,14.40012669]
[1746589945459,152.10012669,146.44,146.39,14.40012669]
[1746589946169,152.10012669,146.44,146.4,14.40012669]
[1746589946170,137.7,146.44,146.4,14.40012669]
[1746589947181,152.10012669,146.44,146.4,21.23030379]
[1746589947476,137.7,146.44,146.42,14.40012669]
[1746589947665,26.0,146.46,146.41,14.40012669]
[1746589947666,40.40012669,146.46,146.41,14.40012669]
[1746589948055,14.40012669,146.44,146.4,21.23030379]
[1746589948381,14.40012669,146.45,146.4,21.23030379]